bitfinex/quotes_ETHUSD_20230405
["timestamp","ask_amount","ask_price","bid_price","bid_amount"]
[1680653358590,2.76602218,1868.7,1868.5,0.43156879]
[1680653359983,0.002,1868.8,1868.5,1.23092066]
[1680653360181,5.92197277,1868.9,1868.5,1.23092066]
[1680653360182,4.514,1868.9,1868.5,1.23092066]
[1680653360415,7.27802218,1868.9,1868.5,1.23092066]
[1680653360589,7.28002218,1868.9,1868.5,1.23092066]
[1680653360799,2.76802218,1868.9,1868.5,1.23092066]
[1680653361027,2.76602218,1868.9,1868.6,0.12309207]
[1680653361232,2.76602218,1868.9,1868.7,0.2408]
[1680653361605,2.76319982,1868.9,1868.7,0.2408]
[1680653362431,2.76319982,1868.9,1868.6,0.84551207]
[1680653367439,2.76319982,1868.9,1868.5,0.34561981]
[1680653367641,0.23,1868.8,1868.5,0.26276794]
[1680653367940,2.99602218,1868.8,1868.5,0.26276794]
[1680653370650,2.99602218,1868.8,1868.5,0.26876794]
[1680653372853,2.99602218,1868.8,1868.5,0.26676794]
[1680653374357,2.99602218,1868.8,1868.5,0.26876794]
[1680653374521,2.99602218,1868.8,1868.5,0.26676794]
[1680653376358,2.99602218,1868.8,1868.6,0.48364857]
[1680653377219,2.99602218,1868.8,1868.6,0.72446857]
[1680653377420,2.99602218,1868.8,1868.6,0.48364857]
[1680653377622,2.99602218,1868.8,1868.6,0.72446857]
[1680653377853,2.99602218,1868.8,1868.6,0.48364857]
[1680653378540,2.99602218,1868.8,1868.6,0.72446857]
[1680653379563,2.99602218,1868.8,1868.6,0.48364857]
[1680653380322,2.99602218,1868.8,1868.6,0.72446857]
[1680653380656,2.99602218,1868.8,1868.6,0.48364857]
[1680653381956,2.76602218,1868.7,1868.6,0.48364857]
[1680653382159,2.99602218,1868.7,1868.6,0.48364857]
[1680653382660,2.99602218,1868.7,1868.4,0.09621992]
[1680653382858,0.23,1868.6,1868.4,0.09621992]
[1680653383051,2.76602218,1868.5,1868.4,0.09621992]
[1680653383357,3.0656244,1868.5,1868.4,0.09621992]
[1680653383567,2.76602218,1868.5,1868.4,0.09621992]
[1680653383769,2.99602218,1868.5,1868.4,0.09621992]
[1680653386046,2.99343578,1868.5,1868.4,0.09621992]
[1680653391457,2.99343578,1868.5,1868.4,0.55234331]
[1680653394273,2.99343578,1868.5,1868.4,0.45612339]
[1680653395500,2.99343578,1868.5,1868.1,0.36281264]
[1680653395675,2.99343578,1868.5,1868.1,0.4578729]
[1680653402808,2.99343578,1868.5,1868.1,0.2170029]
[1680653402976,2.99343578,1868.5,1868.1,0.12194264]
[1680653403390,2.99343578,1868.5,1868.1,0.36282264]
[1680653403793,2.99343578,1868.5,1868.1,0.12194264]
[1680653404088,3.26102578,1868.5,1868.1,0.12194264]
[1680653404308,2.99343578,1868.5,1868.1,0.12194264]
[1680653405485,2.99343578,1868.5,1868.1,0.1]
[1680653405690,3.26102578,1868.5,1868.1,0.1]
[1680653406379,2.99343578,1868.5,1868.1,0.1]
[1680653406585,2.99343578,1868.5,1868.2,0.46905411]
[1680653408722,2.99343578,1868.5,1868.2,0.46577103]
[1680653412099,3.63943578,1868.5,1868.2,0.46577103]
[1680653414524,5.50396736,1868.5,1868.2,0.46577103]
[1680653414690,5.51396736,1868.5,1868.2,0.46577103]
[1680653424038,5.78155736,1868.5,1868.2,0.46577103]
[1680653426239,6.31673736,1868.5,1868.2,0.46577103]
[1680653428132,7.38710736,1868.5,1868.2,0.46577103]
[1680653428758,0.80286,1868.3,1868.2,0.46577103]
[1680653431454,4.63937218,1868.3,1868.2,0.46577103]
[1680653432643,4.63937218,1868.3,1868.1,0.1]
[1680653433142,2.76602218,1868.2,1868.1,0.1]
[1680653433350,3.79892218,1868.2,1868.1,0.1]
[1680653433558,4.3514634,1868.2,1868.1,0.1]
[1680653436450,4.3514634,1868.2,1868.1,0.75945712]
[1680653445573,4.3594634,1868.2,1868.1,0.75945712]
[1680653448993,7.5784634,1868.2,1868.1,0.75945712]
[1680653449193,13.36257565,1868.2,1868.1,0.75945712]
[1680653449391,14.74860866,1868.2,1868.1,0.75568667]
[1680653449690,15.58979232,1868.2,1868.1,0.75568667]
[1680653450074,14.7480837,1868.2,1868.1,0.75568667]
[1680653452506,20.3970837,1868.2,1868.1,0.75568667]
[1680653453105,20.94316596,1868.2,1868.1,0.75568667]
[1680653453508,20.94316596,1868.2,1868.1,0.09622955]
[1680653455030,19.54913295,1868.2,1868.1,0.09622955]
[1680653457282,18.9968688,1868.2,1868.1,0.09622955]
[1680653457481,19.54913295,1868.2,1868.1,0.09622955]
[1680653457886,18.9888688,1868.2,1868.1,0.09622955]
[1680653458325,19.54913295,1868.2,1868.1,0.09622955]
[1680653460194,18.05954566,1868.2,1868.1,0.09622955]
[1680653461253,7.1234634,1868.2,1868.1,0.09622955]
[1680653461456,6.57092218,1868.2,1868.1,0.09622955]
[1680653462402,6.70439464,1868.2,1868.1,0.09622955]
[1680653462957,6.93439464,1868.2,1868.1,0.09622955]
[1680653463355,6.94239464,1868.2,1868.1,0.09622955]
[1680653464008,6.93439464,1868.2,1868.1,0.09622955]
[1680653464554,0.8049,1868.2,1868.1,0.09622955]
[1680653464766,0.8029,1868.2,1868.1,0.09622955]
[1680653465602,0.8029,1868.2,1868.1,0.68632643]
[1680653465802,0.8029,1868.2,1868.1,0.75495907]
[1680653474431,0.8029,1868.2,1868.1,0.68632643]
[1680653475180,3.56892218,1868.2,1868.1,0.68632643]
[1680653475537,3.79892218,1868.2,1868.1,0.68632643]
[1680653476728,8.50748981,1868.2,1868.1,0.68632643]
[1680653477036,11.50948981,1868.2,1868.1,0.68632643]
[1680653477337,14.57462997,1868.2,1868.1,0.68632643]
[1680653477957,15.22062997,1868.2,1868.1,0.68632643]
[1680653478396,15.31436582,1868.2,1868.1,0.68632643]
[1680653478553,15.30636582,1868.2,1868.1,0.68632643]
[1680653478762,16.42745713,1868.2,1868.1,0.6836279]
[1680653478968,15.58675865,1868.2,1868.1,0.6836279]
[1680653479604,15.58675865,1868.2,1868.1,0.09353102]
[1680653480378,0.18706204,1868.0,1867.9,0.1]
[1680653480601,12.79982283,1868.0,1867.9,0.1]
[1680653480922,14.01134562,1868.0,1867.9,0.1]
[1680653481077,18.40517062,1868.0,1867.9,0.1]
[1680653481795,18.96564231,1868.0,1867.9,0.1]
[1680653481977,22.55833193,1868.0,1867.9,0.1]
[1680653482840,21.71767401,1868.0,1867.9,0.1]
[1680653482971,22.55833193,1868.0,1867.9,0.1]
[1680653483176,21.71767401,1868.0,1867.9,0.1]
[1680653483378,22.55833193,1868.0,1867.9,0.1]
[1680653484799,18.50667401,1868.0,1867.9,0.1]
[1680653484996,18.12498454,1868.0,1867.9,0.1]
[1680653487781,18.96564246,1868.0,1867.9,0.1]
[1680653487981,18.40517062,1868.0,1867.9,0.1]
[1680653489985,24.97808919,1868.0,1867.9,0.1]
[1680653490189,30.62708919,1868.0,1867.9,0.1]
[1680653490389,36.15622775,1868.0,1867.9,0.05632332]
[1680653491009,7.24037664,1867.8,1867.7,0.1]
[1680653491215,16.01880508,1867.8,1867.7,0.1]
[1680653491925,20.94520508,1867.8,1867.7,0.1]
[1680653492132,23.06226038,1867.8,1867.7,0.1]
[1680653493526,23.04961374,1867.8,1867.7,0.1]
[1680653493939,26.26861374,1867.8,1867.7,0.1]
[1680653497307,18.79715218,1867.8,1867.7,0.1]
[1680653497692,14.41218533,1867.8,1867.7,0.1]
[1680653498010,13.87075218,1867.8,1867.7,0.1]
[1680653500107,14.40819838,1867.8,1867.7,0.1]
[1680653501811,14.53952236,1867.8,1867.7,0.1]
[1680653502005,13.89452236,1867.8,1867.7,0.1]
[1680653502207,2.00716398,1867.8,1867.7,0.1]
[1680653502410,1.87384,1867.8,1867.7,0.1]
[1680653502742,4.63986218,1867.8,1867.7,0.60973683]
[1680653503814,4.86986218,1867.8,1867.7,0.60973683]
[1680653509361,4.63986218,1867.8,1867.7,0.60973683]
[1680653516168,4.63986218,1867.8,1867.7,0.55973683]
[1680653518271,6.12948045,1867.8,1867.7,0.55973683]
[1680653518577,6.13948045,1867.8,1867.7,0.55973683]
[1680653519951,6.41953183,1867.8,1867.7,0.55973683]
[1680653520164,6.98058274,1867.8,1867.7,0.55973683]
[1680653520360,6.41953183,1867.8,1867.7,0.55973683]
[1680653520566,6.9805813,1867.8,1867.7,0.55973683]
[1680653521877,6.14042714,1867.8,1867.7,0.55973683]
[1680653522275,6.9805813,1867.8,1867.7,0.55973683]
[1680653522630,6.14042714,1867.8,1867.7,0.55973683]
[1680653523392,6.41953183,1867.8,1867.7,0.55973683]
[1680653529902,5.34876183,1867.8,1867.7,0.55973683]
[1680653532404,5.34876183,1867.8,1867.7,0.55973683]
[1680653541848,6.47033832,1867.8,1867.7,0.55973683]
[1680653545651,5.63018416,1867.8,1867.7,0.55973683]
[1680653557672,5.35145362,1867.8,1867.7,0.55973683]
[1680653573085,6.20315369,1867.8,1867.7,0.55973683]
[1680653573453,7.27392369,1867.8,1867.7,0.55973683]
[1680653573652,8.84465423,1867.8,1867.7,0.55973683]
[1680653573992,15.29365423,1867.8,1867.7,0.55973683]
[1680653574589,15.29365423,1867.8,1867.7,0.05]
[1680653574764,29.62195423,1867.8,1867.7,0.05]
[1680653574960,31.01616652,1867.8,1867.7,0.05]
[1680653575656,32.41813713,1867.8,1867.7,0.05]
[1680653575894,31.01616652,1867.8,1867.7,0.05]
[1680653579393,31.54277107,1867.8,1867.7,0.05]
[1680653579872,32.94474168,1867.8,1867.7,0.05]
[1680653584162,31.54277107,1867.8,1867.7,0.05]
[1680653584595,32.94474168,1867.8,1867.7,0.05]
[1680653584808,31.54277107,1867.8,1867.7,0.05]
[1680653592821,31.67417766,1867.8,1867.7,0.05]
[1680653593022,31.02817766,1867.8,1867.7,0.05]
[1680653603013,31.67317766,1867.8,1867.7,0.05]
[1680653612945,31.02817766,1867.8,1867.7,0.05]
[1680653613101,20.46265575,1867.8,1867.7,0.05]
[1680653613305,18.22598416,1867.8,1867.7,0.05]
[1680653613749,8.63018416,1867.8,1867.7,0.05]
[1680653619960,4.7821448,1867.8,1867.7,0.05]
[1680653620127,2.0398348,1867.8,1867.7,0.05]
[1680653620542,2.0398348,1867.8,1867.7,0.54766586]
[1680653621636,1.7721448,1867.8,1867.7,0.61243245]
[1680653622034,1.40424768,1867.8,1867.7,0.61243245]
[1680653622260,0.57161837,1868.0,1867.8,0.0024682]
[1680653622461,0.56161837,1868.0,1867.8,0.0024682]
[1680653622839,0.56161837,1868.1,1867.8,0.0024682]
[1680653623164,0.56161837,1868.1,1867.8,0.08805127]
[1680653623538,1.49091518,1868.1,1867.8,0.10999743]
[1680653623735,1.49091518,1868.1,1867.8,0.02441436]
[1680653623935,0.92929681,1868.1,1867.8,0.02441436]
[1680653624145,1.67188768,1868.2,1867.8,0.02441436]
[1680653624340,0.92929925,1868.1,1867.8,0.02441436]
[1680653624651,0.26766,1868.0,1867.8,0.02441436]
[1680653624857,4.14062055,1868.1,1867.8,0.02441436]
[1680653625055,4.13062055,1868.1,1867.8,0.02441436]
[1680653627144,4.12724158,1868.1,1867.8,0.02441436]
[1680653631583,4.12724158,1868.1,1867.9,0.49227399]
[1680653631986,3.56900218,1868.1,1867.9,0.49227399]
[1680653634890,3.03368218,1868.1,1867.9,0.49227399]
[1680653638087,0.82997888,1868.2,1867.9,0.49227399]
[1680653638292,0.26766,1868.1,1867.9,0.49227399]
[1680653639995,0.82799888,1868.2,1867.9,0.49227399]
[1680653640171,0.26765,1868.2,1867.9,0.49227399]
[1680653640586,0.26763,1868.2,1867.9,0.49227399]
[1680653641691,1.49810126,1868.3,1867.9,0.49227399]
[1680653642062,0.96285126,1868.3,1867.9,0.49227399]
[1680653655379,1.49809126,1868.3,1867.9,0.49227399]
[1680653657736,0.82797888,1868.3,1867.9,0.49227399]
[1680653657957,0.56034888,1868.3,1867.9,0.49227399]
[1680653658250,0.56034888,1868.3,1867.9,0.56843482]
[1680653658445,1.48960829,1868.3,1867.9,0.56843482]
[1680653658951,1.75722829,1868.3,1867.9,0.56843482]
[1680653659119,0.82796888,1868.3,1867.9,0.56843482]
[1680653659517,0.56034888,1868.3,1867.9,0.56843482]
[1680653659715,0.82796888,1868.3,1868.0,0.05684348]
[1680653659916,0.56034888,1868.3,1868.0,0.05684348]
[1680653660553,1.48961166,1868.3,1868.0,0.05684348]
[1680653660730,1.75723166,1868.3,1867.8,0.26933436]
[1680653661056,0.56034888,1868.3,1867.8,0.26933436]
[1680653661348,0.56034888,1868.3,1867.8,0.26533436]
[1680653661550,1.48961303,1868.3,1867.9,0.48603848]
[1680653662244,1.75723303,1868.3,1867.9,0.48603848]
[1680653662439,0.56034888,1868.3,1867.9,0.56117576]
[1680653662823,1.48959761,1868.3,1867.9,0.56117576]
[1680653663363,1.48959761,1868.3,1867.9,0.46117576]
[1680653664166,0.56834888,1868.3,1867.9,0.46117576]
[1680653664319,0.56034888,1868.3,1867.9,0.46117576]
[1680653664752,1.48959908,1868.3,1867.9,0.46117576]
[1680653665047,1.49759908,1868.3,1867.9,0.46117576]
[1680653665252,0.56834888,1868.3,1867.9,0.46117576]
[1680653665512,0.82796888,1868.3,1867.9,0.46117576]
[1680653666030,0.56034888,1868.2,1867.9,0.46117576]
[1680653666538,1.48959592,1868.2,1867.9,0.46117576]
[1680653670539,1.48959592,1868.2,1867.9,0.57942733]
[1680653675019,1.75723592,1868.2,1867.9,0.57942733]
[1680653675222,0.82798888,1868.2,1867.9,0.57942733]
[1680653676052,4.12928106,1868.2,1867.9,0.50429005]
[1680653676256,4.78328106,1868.2,1867.9,0.50429005]
[1680653677424,0.26766,1868.0,1867.9,0.50429005]
[1680653679329,0.80299,1868.0,1867.9,0.50429005]
[1680653679643,1.73232121,1868.0,1867.9,0.50429005]
[1680653679847,2.29267009,1868.0,1867.9,0.50429005]
[1680653680037,2.77836403,1868.0,1867.9,0.50429005]
[1680653680635,2.78636403,1868.0,1867.9,0.50429005]
[1680653681634,2.78636403,1868.0,1867.8,0.0024682]
[1680653681966,1.85703282,1868.0,1867.8,0.0024682]
[1680653682272,1.84903282,1868.0,1867.8,0.0024682]
[1680653682635,1.84903282,1868.0,1867.9,0.47443954]
[1680653682967,5.83467781,1868.0,1867.9,0.47443954]
[1680653683170,11.2502543,1868.0,1867.9,0.47443954]
[1680653683375,10.12867781,1868.0,1867.9,0.47443954]
[1680653683533,10.12867781,1868.0,1867.8,0.0024682]
[1680653683728,8.91547707,1867.9,1867.8,0.0024682]
[1680653684077,10.79923707,1867.9,1867.8,0.0024682]
[1680653685868,10.79123707,1867.9,1867.8,0.0024682]
[1680653686071,15.66873707,1867.9,1867.8,0.0024682]
[1680653686371,17.06294936,1867.9,1867.8,0.0024682]
[1680653688638,17.90557867,1867.9,1867.8,0.0024682]
[1680653688831,17.06294936,1867.9,1867.8,0.0024682]
[1680653691178,17.06290589,1867.9,1867.8,0.0024682]
[1680653693181,15.66873707,1867.9,1867.8,0.0024682]
[1680653695195,17.06290439,1867.9,1867.8,0.0024682]
[1680653697288,15.66873707,1867.9,1867.8,0.0024682]
[1680653700585,17.06293908,1867.9,1867.8,0.0024682]
[1680653701398,0.00091076,1867.8,1867.7,0.05]
[1680653701583,5.92158792,1867.8,1867.7,0.05]
[1680653701788,5.92358792,1867.8,1867.7,0.05]
[1680653702091,6.56858792,1867.8,1867.7,0.05]
[1680653702601,6.56858792,1867.8,1867.7,0.49182032]
[1680653704465,6.56643213,1867.8,1867.7,0.49182032]
[1680653711118,7.49595176,1867.8,1867.7,0.49182032]
[1680653711289,8.05719649,1867.8,1867.7,0.49182032]
[1680653711499,7.49595176,1867.8,1867.7,0.49182032]
[1680653712421,8.78495176,1867.8,1867.7,0.49182032]
[1680653712991,12.34619649,1867.8,1867.7,0.49182032]
[1680653713801,21.21419649,1867.8,1867.7,0.49182032]
[1680653714097,22.83841488,1867.8,1867.7,0.49182032]
[1680653714485,22.83841488,1867.8,1867.7,0.05]
[1680653714886,21.44419649,1867.8,1867.7,0.05]
[1680653715138,22.83841488,1867.8,1867.7,0.05]
[1680653715422,24.06643364,1867.8,1867.4,0.1]
[1680653715629,5.73415,1867.5,1867.4,0.1]
[1680653715821,8.50217218,1867.5,1867.4,0.1]
[1680653716029,8.73217218,1867.5,1867.4,0.1]
[1680653717089,11.73217218,1867.5,1867.4,0.1]
[1680653717283,14.22816005,1867.5,1867.4,0.1]
[1680653717792,23.58452131,1867.5,1867.4,0.1]
[1680653718035,24.69849728,1867.5,1867.4,0.1]
[1680653718436,25.38134342,1867.5,1867.4,0.1]
[1680653718653,24.08734342,1867.5,1867.4,0.1]
[1680653719011,24.36783697,1867.5,1867.4,0.1]
[1680653719214,24.36783697,1867.5,1867.3,0.1]
[1680653719215,27.90244493,1867.5,1867.3,0.1]
[1680653719413,32.85596936,1867.4,1867.3,0.1]
[1680653719627,37.73319888,1867.4,1867.3,0.1]
[1680653719842,38.41604502,1867.4,1867.3,0.1]
[1680653720042,39.09073202,1867.4,1867.3,0.1]
[1680653721164,39.35821308,1867.4,1867.3,0.1]
[1680653722218,44.35821308,1867.4,1867.3,0.1]
[1680653726214,8.968,1867.2,1867.0,0.1]
[1680653726416,12.38156218,1867.1,1867.0,0.1]
[1680653726717,12.38356218,1867.1,1867.0,0.1]
[1680653727230,21.80676218,1867.1,1867.0,0.1]
[1680653728253,18.58776218,1867.1,1867.0,0.1]
[1680653728576,7.21739218,1867.1,1867.0,0.1]
[1680653731259,8.1212474,1867.1,1867.0,0.1]
[1680653733872,17.2192474,1867.1,1867.0,0.1]
[1680653734069,19.1652474,1867.1,1867.0,0.1]
[1680653734748,29.0594474,1867.1,1867.0,0.1]
[1680653735849,30.67226384,1867.1,1867.0,0.1]
[1680653736075,29.74229354,1867.1,1867.0,0.1]
[1680653736271,8.868,1867.0,1866.9,0.0634]
[1680653736482,24.96398153,1867.0,1866.9,0.0634]
[1680653736975,29.87378153,1867.0,1866.9,0.0634]
[1680653737351,8.868,1866.8,1866.6,0.0732]
[1680653737572,8.868,1866.8,1866.6,0.0002]
[1680653737573,35.43729218,1866.7,1866.6,0.0002]
[1680653737884,37.31982093,1866.7,1866.6,0.0002]
[1680653738079,37.29430638,1866.7,1866.6,0.0002]
[1680653738270,5.0,1866.5,1866.1,0.1]
[1680653738473,14.22502218,1866.3,1866.1,0.1]
[1680653738669,15.03073218,1866.3,1866.1,0.1]
[1680653738872,15.29821324,1866.3,1866.1,0.1]
[1680653739051,18.52821324,1866.3,1866.1,0.1]
[1680653739383,36.39605756,1866.3,1866.1,0.1]
[1680653739589,38.3689037,1866.3,1866.1,0.055]
[1680653739788,21.20869691,1866.2,1865.8,0.181396]
[1680653739952,14.21702218,1865.9,1865.8,0.181396]
[1680653740149,19.32477218,1865.9,1865.8,0.181396]
[1680653740382,24.32477218,1865.9,1865.8,0.181396]
[1680653740952,24.33277218,1865.9,1865.8,0.181396]
[1680653741374,8.868,1865.6,1865.2,0.006]
[1680653741598,12.92202218,1865.3,1865.0,0.03753375]
[1680653741898,0.91408,1865.1,1865.0,0.03753375]
[1680653742101,3.68010218,1865.1,1865.0,0.03753375]
[1680653742313,3.002,1865.2,1865.0,0.03753375]
[1680653742516,0.26808,1865.1,1865.0,0.03753375]
[1680653742996,3.0,1865.3,1865.0,0.03753375]
[1680653743164,0.002,1865.5,1865.0,0.05951286]
[1680653743365,0.80412,1865.4,1865.0,0.05951286]
[1680653743579,0.80412,1865.4,1865.1,0.56337622]
[1680653743788,0.80412,1865.4,1865.1,0.62566513]
[1680653744506,7.72114218,1865.4,1865.1,0.56337622]
[1680653744698,7.72314218,1865.4,1865.1,0.56337622]
[1680653745276,6.57214218,1865.4,1865.1,0.56337622]
[1680653745473,3.57213218,1865.4,1865.1,0.56337622]
[1680653745672,3.57013218,1865.4,1865.1,0.56337622]
[1680653745899,3.57013218,1865.4,1865.1,0.62406722]
[1680653746660,3.57013218,1865.4,1865.1,0.56337622]
[1680653746863,3.57013218,1865.4,1865.1,0.56737622]
[1680653747261,2.76602218,1865.3,1865.1,0.56737622]
[1680653747605,1.87646,1865.2,1865.1,0.006]
[1680653747780,4.64248218,1865.2,1865.0,0.04353375]
[1680653747980,4.64248218,1865.2,1865.0,0.03753375]
[1680653748608,4.64248218,1865.2,1865.1,0.53560704]
[1680653748811,6.2499304,1865.2,1865.1,0.53560704]
[1680653748965,6.2519304,1865.2,1865.1,0.53560704]
[1680653749171,9.2519304,1865.2,1865.1,0.53560704]
[1680653749592,9.2519304,1865.2,1865.0,0.03753375]
[1680653749794,2.76602218,1865.1,1865.0,0.03753375]
[1680653749980,3.57026218,1865.1,1865.0,0.03753375]
[1680653750567,7.77143662,1865.1,1865.0,0.03753375]
[1680653750764,7.77343662,1865.1,1865.0,0.03753375]
[1680653751082,6.57226218,1865.1,1865.0,0.03753375]
[1680653751380,12.18236022,1865.1,1865.0,0.03753375]
[1680653751690,12.41236022,1865.1,1865.0,0.03753375]
[1680653753671,12.18236022,1865.1,1865.0,0.03753375]
[1680653753972,10.93526218,1865.1,1865.0,0.03753375]
[1680653754613,7.71626218,1865.1,1865.0,0.03753375]
[1680653759415,7.94626218,1865.1,1865.0,0.03753375]
[1680653760321,16.81426218,1865.1,1865.0,0.03753375]
[1680653760633,0.07306749,1864.9,1864.6,0.1]
[1680653760788,3.57039218,1864.8,1864.6,0.1]
[1680653761389,0.80437,1864.8,1864.6,0.1]
[1680653761597,0.26812,1864.8,1864.7,0.51574313]
[1680653762128,0.80437,1864.8,1864.7,0.51574313]
[1680653763624,3.57039218,1864.8,1864.7,0.51574313]
[1680653763918,6.57039218,1864.8,1864.7,0.51574313]
[1680653764126,6.57239218,1864.8,1864.7,0.51574313]
[1680653767323,7.45858615,1864.8,1864.7,0.51574313]
[1680653767506,6.03614218,1864.8,1864.7,0.51574313]
[1680653768447,6.57239218,1864.8,1864.7,0.51574313]
[1680653770945,0.002,1864.8,1864.7,0.51574313]
[1680653771153,0.07306749,1864.9,1864.7,0.51574313]
[1680653774460,0.07306749,1864.9,1864.8,0.26329147]
[1680653774644,0.07306749,1864.9,1864.8,1.65535993]
[1680653774959,0.07306749,1864.9,1864.8,6.82235993]
[1680653775177,0.07306749,1864.9,1864.8,6.83035993]
[1680653775457,6.749e-05,1864.9,1864.8,8.45997993]
[1680653775657,6.749e-05,1864.9,1864.8,8.45797993]
[1680653776423,6.749e-05,1864.9,1864.8,20.10300211]
[1680653777258,6.749e-05,1864.9,1864.8,20.62495285]
[1680653778073,0.008,1866.0,1865.3,5.649]
[1680653778359,0.008,1866.0,1865.8,1.151]
[1680653778561,0.008,1866.1,1865.9,1.87451]
[1680653778768,0.11000001,1866.3,1865.9,1.87451]
[1680653778769,0.11800001,1866.3,1865.9,1.87451]
[1680653778926,0.11000001,1866.3,1866.0,1.338451]
[1680653779122,0.11000001,1866.3,1866.1,0.72342]
[1680653779322,0.11000001,1866.3,1866.1,1.22342]
[1680653779528,0.11000001,1866.3,1866.1,0.24114]
[1680653779727,0.11000001,1866.3,1866.2,1.145]
[1680653779927,0.11000001,1866.3,1866.2,10.51341218]
[1680653780134,0.11000001,1866.3,1866.2,10.51541218]
[1680653780461,0.11000001,1866.3,1866.2,1.147]
[1680653780764,0.11000001,1866.3,1866.2,1.145]
[1680653780970,0.11000001,1866.3,1866.2,1.85004211]
[1680653781185,0.11000001,1866.3,1866.2,2.09117211]
[1680653781476,0.11000001,1866.3,1866.2,1.85004211]
[1680653781654,0.05946594,1866.3,1866.2,2.35538278]
[1680653782232,0.05946594,1866.3,1866.2,2.59651278]
[1680653782672,0.01169842,1866.3,1866.2,2.59651278]
[1680653783542,0.01169842,1866.3,1866.2,3.07877278]
[1680653783874,0.14749567,1866.9,1866.3,0.0219638]
[1680653784176,0.14749567,1866.9,1866.4,1.3921]
[1680653784533,0.14749567,1866.9,1866.4,1.151]
[1680653785330,0.14749567,1866.9,1866.4,1.39209]
[1680653785577,0.14749567,1866.9,1866.6,1.149]
[1680653785761,0.14749567,1866.9,1866.6,1.39007]
[1680653785935,0.14749567,1866.9,1866.7,0.139007]
[1680653786138,0.14749567,1866.9,1866.7,0.380067]
[1680653786439,0.14749567,1866.9,1866.7,5.788007]
[1680653786646,0.14749567,1866.9,1866.7,5.790007]
[1680653787947,0.14749567,1866.9,1866.7,6.031067]
[1680653788142,0.14749567,1866.9,1866.8,0.6031067]
[1680653788395,0.14749567,1866.9,1866.8,7.6381567]
[1680653788558,0.14749567,1866.9,1866.8,1.7501067]
[1680653788739,0.14749567,1866.9,1866.8,1.145]
[1680653789144,0.14749567,1866.9,1866.7,0.139007]
[1680653789695,0.14749567,1866.9,1866.8,0.47202971]
[1680653791443,0.14749567,1866.9,1866.8,0.71307971]
[1680653793416,0.14749567,1866.9,1866.8,1.19517971]
[1680653793585,0.14749567,1866.9,1866.8,1.32859838]
[1680653799783,0.14749567,1866.9,1866.8,6.97759838]
[1680653799958,0.14749567,1866.9,1866.8,10.89662056]
[1680653800156,0.14749567,1866.9,1866.8,14.12662056]
[1680653801149,0.00049567,1866.9,1866.8,15.27762056]
[1680653801347,0.21000001,1867.2,1866.9,0.5]
[1680653801593,0.21000001,1867.2,1867.1,6.8]
[1680653801778,0.21000001,1867.2,1867.1,10.29106218]
[1680653801958,0.21000001,1867.2,1867.1,10.52106218]
[1680653802363,0.21000001,1867.2,1867.1,10.54301656]
[1680653807457,0.21000001,1867.2,1867.1,13.54301656]
[1680653807768,0.21000001,1867.2,1867.1,15.49893922]
[1680653808849,0.21000001,1867.2,1867.1,14.34793922]
[1680653809862,0.21000001,1867.2,1867.1,15.49693922]
[1680653811693,0.21000001,1867.2,1867.1,15.95847536]
[1680653814256,0.16000001,1867.2,1867.1,15.95847536]
[1680653815480,0.16000001,1867.2,1867.1,14.80947536]
[1680653822474,0.16000001,1867.2,1867.1,15.88318987]
[1680653823307,0.16000001,1867.2,1867.1,17.03418987]
[1680653823308,1e-08,1867.2,1867.1,17.03418987]
[1680653830786,5.59557705,1868.1,1867.2,0.5]
[1680653831116,0.63097705,1868.1,1867.4,8.48676]
[1680653831285,0.62897705,1868.1,1867.6,5.649]
[1680653831489,0.62897705,1868.1,1867.7,0.72279]
[1680653831687,0.07000003,1868.1,1867.8,8.48730118]
[1680653831894,0.07800003,1868.1,1867.9,0.24091]
[1680653832093,0.07000003,1868.1,1867.9,0.72273]
[1680653832806,0.07000003,1868.1,1867.9,9.13775218]
[1680653833117,0.07000003,1868.1,1868.0,2.60004522]
[1680653834419,0.07000003,1868.1,1868.0,2.62198902]
[1680653834596,0.07000003,1868.1,1868.0,11.0370112]
[1680653834908,0.07000003,1868.1,1868.0,12.4200112]
[1680653835111,0.07000003,1868.1,1868.0,14.2690112]
[1680653835510,0.11000001,1868.4,1868.3,0.5]
[1680653835718,0.11000001,1868.4,1868.3,13.83104218]
[1680653836025,0.11000001,1868.4,1868.3,13.33304218]
[1680653837916,0.11000001,1868.4,1868.3,13.35498246]
[1680653841690,1e-08,1868.4,1868.3,14.96195885]
[1680653841929,1e-08,1868.4,1868.3,26.93880363]
[1680653845731,1e-08,1868.4,1868.3,28.83880363]
[1680653846548,1e-08,1868.4,1868.3,29.63880363]
[1680653849225,1e-08,1868.4,1868.3,29.64280363]
[1680653850335,0.06000002,1869.0,1868.3,29.64480363]
[1680653850542,0.06000002,1869.0,1868.7,5.649]
[1680653850743,0.06000002,1869.0,1868.9,5.649]
[1680653850942,0.06000002,1869.0,1868.9,8.65780218]
[1680653851256,0.06000002,1869.0,1868.9,11.65780218]
[1680653851633,0.01475017,1869.0,1868.9,11.65780218]
[1680653851835,0.01475017,1869.0,1868.9,12.8721414]
[1680653852660,0.01475017,1869.0,1868.9,13.32237738]
[1680653853179,0.01475017,1869.0,1868.9,13.80393738]
[1680653853775,0.01475017,1869.0,1868.9,16.80393738]
[1680653854163,0.01475017,1869.0,1868.9,16.82587062]
[1680653854364,0.01475017,1869.0,1868.9,17.05587062]
[1680653854700,0.11000001,1869.1,1868.9,17.05587062]
[1680653854872,0.11000001,1869.1,1869.0,13.35060924]
[1680653855057,0.11000001,1869.1,1869.0,14.07491924]
[1680653855397,0.11000001,1869.4,1869.1,1.40749192]
[1680653855398,1e-08,1869.4,1869.1,1.40749192]
[1680653855559,0.40431102,1869.5,1869.3,8.41502218]
[1680653855895,0.40431102,1869.5,1869.4,10.56401]
[1680653856094,0.40431102,1869.5,1869.4,13.33403218]
[1680653856306,0.40431102,1869.5,1869.4,13.33803218]
[1680653856458,0.40431102,1869.5,1869.4,14.6718354]
[1680653857873,0.40431102,1869.5,1869.4,14.69376278]
[1680653859587,0.3601766,1869.5,1869.4,15.12910696]
[1680653859799,0.3601766,1869.5,1869.4,14.68776278]
[1680653860294,0.3101766,1869.5,1869.4,14.68776278]
[1680653860693,0.26626285,1869.5,1869.4,15.12690024]
[1680653861300,0.11000001,1869.6,1869.4,15.12690024]
[1680653861641,0.11000001,1869.6,1869.5,12.1277122]
[1680653861836,0.11000001,1869.6,1869.5,16.0818222]
[1680653867613,0.06634312,1869.6,1869.5,16.51839112]
[1680653868876,0.02290451,1869.6,1869.5,16.51839112]